[Event "Early-Titled-Tuesday-Blitz-January-16-2024"]
[Site "Chess.com"]
[Date "2024.01.16"]
[Round "2"]
[White "bascheyaro"]
[Black "AmanteDeMoi"]
[Result "0-1"]
[WhiteElo "2801"]
[BlackElo "2570"]
[TimeControl "180+1"]
[EndTime "8:18:51 PST"]
[Termination "AmanteDeMoi won on time"]

1. d4 {[%clk 0:02:28.6]} 1... g6 {[%clk 0:02:59]} 2. Nf3 {[%clk 0:02:28.5]} 2...
Bg7 {[%clk 0:02:59.2]} 3. Bf4 {[%clk 0:02:28.6]} 3... d6 {[%clk 0:02:59.7]} 4.
e3 {[%clk 0:02:28.7]} 4... Nd7 {[%clk 0:03:00.1]} 5. Nbd2 {[%clk 0:02:28.7]}
5... e5 {[%clk 0:03:00.1]} 6. Bg3 {[%clk 0:02:29]} 6... Ne7 {[%clk 0:02:57.5]}
7. dxe5 {[%clk 0:02:26.5]} 7... Nxe5 {[%clk 0:02:50.5]} 8. Nxe5 {[%clk
0:02:20.2]} 8... dxe5 {[%clk 0:02:50.4]} 9. Bc4 {[%clk 0:02:20.3]} 9... Nf5
{[%clk 0:02:47.1]} 10. Nf3 {[%clk 0:02:12.3]} 10... Qxd1+ {[%clk 0:02:44.7]} 11.
Rxd1 {[%clk 0:02:11.8]} 11... Nxg3 {[%clk 0:02:45]} 12. hxg3 {[%clk 0:02:11.9]}
12... h6 {[%clk 0:02:33.5]} 13. e4 {[%clk 0:01:57.7]} 13... Ke7 {[%clk
0:02:31.9]} 14. Ke2 {[%clk 0:01:41]} 14... c6 {[%clk 0:02:30.6]} 15. a4 {[%clk
0:01:40.6]} 15... Bg4 {[%clk 0:02:23.2]} 16. Rd3 {[%clk 0:01:40.4]} 16... Rad8
{[%clk 0:02:21.6]} 17. Rhd1 {[%clk 0:01:40.1]} 17... f5 {[%clk 0:01:53.3]} 18.
Rxd8 {[%clk 0:01:13.9]} 18... Rxd8 {[%clk 0:01:54.2]} 19. Bd3 {[%clk 0:01:13.5]}
19... Bf6 {[%clk 0:01:44.1]} 20. Rh1 {[%clk 0:01:08.2]} 20... h5 {[%clk
0:01:43]} 21. Ke3 {[%clk 0:01:01.7]} 21... Rf8 {[%clk 0:01:16.9]} 22. Nh4 {[%clk
0:00:35]} 22... f4+ {[%clk 0:01:15.8]} 23. Kd2 {[%clk 0:00:30.4]} 23... Bxh4
{[%clk 0:00:51.4]} 24. gxh4 {[%clk 0:00:30.6]} 24... Be6 {[%clk 0:00:51.7]} 25.
b4 {[%clk 0:00:23.6]} 25... Rd8 {[%clk 0:00:50.9]} 26. Kc3 {[%clk 0:00:23.6]}
26... Rd4 {[%clk 0:00:50.5]} 27. Rg1 {[%clk 0:00:20.5]} 27... Kd6 {[%clk
0:00:49.2]} 28. g3 {[%clk 0:00:20.6]} 28... f3 {[%clk 0:00:48.2]} 29. Re1 {[%clk
0:00:20.6]} 29... a5 {[%clk 0:00:48.5]} 30. Rb1 {[%clk 0:00:18.3]} 30... b6
{[%clk 0:00:46]} 31. bxa5 {[%clk 0:00:16.2]} 31... bxa5 {[%clk 0:00:46.9]} 32.
Rb7 {[%clk 0:00:16.3]} 32... Bd7 {[%clk 0:00:38.2]} 33. Kb3 {[%clk 0:00:16.3]}
33... Be6+ {[%clk 0:00:32.2]} 34. Kb2 {[%clk 0:00:15.4]} 34... Rb4+ {[%clk
0:00:30.3]} 35. Rxb4 {[%clk 0:00:15.3]} 35... axb4 {[%clk 0:00:31.2]} 36. c3
{[%clk 0:00:15]} 36... c5 {[%clk 0:00:25.2]} 37. Bb5 {[%clk 0:00:13.7]} 37...
Bf7 {[%clk 0:00:23.1]} 38. Ba6 {[%clk 0:00:13.2]} 38... Kc7 {[%clk 0:00:19.6]}
39. a5 {[%clk 0:00:08.6]} 39... Kc6 {[%clk 0:00:19.1]} 40. Bf1 {[%clk
0:00:05.8]} 40... Kb7 {[%clk 0:00:17.6]} 41. Bd3 {[%clk 0:00:03.1]} 41... Be6
{[%clk 0:00:17.5]} 42. Bc2 {[%clk 0:00:03.2]} 42... Bc4 {[%clk 0:00:15.9]} 0-1

[Event "Early-Titled-Tuesday-Blitz-January-16-2024"]
[Site "Chess.com"]
[Date "2024.01.16"]
[Round "2"]
[White "Payyappat"]
[Black "Korchmar_Vasiliy"]
[Result "1-0"]
[WhiteElo "2456"]
[BlackElo "2739"]
[TimeControl "180+1"]
[EndTime "8:18:51 PST"]
[Termination "Payyappat won on time"]

1. e4 {[%clk 0:03:00.9]} 1... c5 {[%clk 0:02:59.1]} 2. Nf3 {[%clk 0:03:00.8]}
2... d6 {[%clk 0:02:59.3]} 3. d4 {[%clk 0:03:01.7]} 3... cxd4 {[%clk 0:02:59.9]}
4. Nxd4 {[%clk 0:03:02.6]} 4... Nf6 {[%clk 0:02:59.5]} 5. Nc3 {[%clk 0:03:03.5]}
5... Nc6 {[%clk 0:02:59.8]} 6. Bg5 {[%clk 0:02:59.5]} 6... Bd7 {[%clk
0:02:59.3]} 7. Qd2 {[%clk 0:02:58.9]} 7... a6 {[%clk 0:02:58.1]} 8. O-O-O {[%clk
0:02:59.2]} 8... e6 {[%clk 0:02:54.2]} 9. f4 {[%clk 0:02:58.8]} 9... Be7 {[%clk
0:02:53]} 10. Be2 {[%clk 0:02:55.3]} 10... b5 {[%clk 0:02:51.4]} 11. Bf3 {[%clk
0:02:55.3]} 11... Rc8 {[%clk 0:02:47.4]} 12. e5 {[%clk 0:02:19.6]} 12... dxe5
{[%clk 0:02:38.6]} 13. Nxc6 {[%clk 0:02:16.7]} 13... Bxc6 {[%clk 0:02:35.5]} 14.
Bxc6+ {[%clk 0:01:57.8]} 14... Rxc6 {[%clk 0:02:34.5]} 15. Qxd8+ {[%clk
0:01:55.8]} 15... Bxd8 {[%clk 0:02:35.4]} 16. fxe5 {[%clk 0:01:49.3]} 16... Nd7
{[%clk 0:02:28.7]} 17. Bxd8 {[%clk 0:01:48.3]} 17... Kxd8 {[%clk 0:02:29.6]} 18.
Rhf1 {[%clk 0:01:47]} 18... Ke7 {[%clk 0:02:22.5]} 19. Rxd7+ {[%clk 0:01:45.8]}
19... Kxd7 {[%clk 0:02:22.4]} 20. Rxf7+ {[%clk 0:01:45.9]} 20... Kc8 {[%clk
0:02:21.3]} 21. Rxg7 {[%clk 0:01:46.8]} 21... Rc5 {[%clk 0:02:11.1]} 22. Ne4
{[%clk 0:01:41.1]} 22... Rxe5 {[%clk 0:02:10.8]} 23. Nd6+ {[%clk 0:01:40.7]}
23... Kb8 {[%clk 0:02:11.3]} 24. Nf7 {[%clk 0:01:41.6]} 24... Re1+ {[%clk
0:01:28.3]} 25. Kd2 {[%clk 0:01:36.3]} 25... Rb1 {[%clk 0:01:27.3]} 26. Nxh8
{[%clk 0:01:34.6]} 26... Rxb2 {[%clk 0:01:27.9]} 27. Rxh7 {[%clk 0:01:33.3]}
27... Rxa2 {[%clk 0:01:28.2]} 28. g4 {[%clk 0:01:32.1]} 28... b4 {[%clk
0:01:25]} 29. g5 {[%clk 0:01:33]} 29... b3 {[%clk 0:01:25.2]} 30. g6 {[%clk
0:01:25.5]} 30... Rxc2+ {[%clk 0:01:12.1]} 31. Kd3 {[%clk 0:01:25]} 31... Rg2
{[%clk 0:01:13]} 32. Rh4 {[%clk 0:01:10.6]} 32... a5 {[%clk 0:01:00.8]} 33. Rh5
{[%clk 0:01:09.9]} 33... a4 {[%clk 0:00:57.7]} 34. h4 {[%clk 0:01:05.4]} 34...
Kc7 {[%clk 0:00:46]} 35. Rb5 {[%clk 0:00:59.7]} 35... Kc6 {[%clk 0:00:19.3]} 36.
Rb8 {[%clk 0:00:48.3]} 36... b2 {[%clk 0:00:10.8]} 37. g7 {[%clk 0:00:07.2]}
37... a3 {[%clk 0:00:10]} 38. Nf7 {[%clk 0:00:06.5]} 38... Rxg7 {[%clk
0:00:04.2]} 39. Ne5+ {[%clk 0:00:06.1]} 1-0

[Event "Early-Titled-Tuesday-Blitz-January-16-2024"]
[Site "Chess.com"]
[Date "2024.01.16"]
[Round "2"]
[White "KevinGeorgeMicheal"]
[Black "StankovicIvan"]
[Result "1-0"]
[WhiteElo "2263"]
[BlackElo "2478"]
[TimeControl "180+1"]
[EndTime "8:18:54 PST"]
[Termination "KevinGeorgeMicheal won by resignation"]

1. e4 {[%clk 0:03:00.9]} 1... c5 {[%clk 0:02:59.9]} 2. Nf3 {[%clk 0:03:00.7]}
2... Nc6 {[%clk 0:03:00.3]} 3. Nc3 {[%clk 0:02:59.6]} 3... g6 {[%clk 0:03:00.5]}
4. Bc4 {[%clk 0:02:41.7]} 4... Bg7 {[%clk 0:02:58.9]} 5. O-O {[%clk 0:02:41.9]}
5... d6 {[%clk 0:02:58.1]} 6. d3 {[%clk 0:02:42]} 6... Nf6 {[%clk 0:02:56]} 7.
h3 {[%clk 0:02:40.5]} 7... O-O {[%clk 0:02:55.9]} 8. Be3 {[%clk 0:02:40.2]} 8...
a6 {[%clk 0:02:52.9]} 9. a4 {[%clk 0:02:39.8]} 9... Rb8 {[%clk 0:02:50.1]} 10.
d4 {[%clk 0:02:38.5]} 10... cxd4 {[%clk 0:02:46.6]} 11. Nxd4 {[%clk 0:02:38.4]}
11... Nxe4 {[%clk 0:02:34.6]} 12. Nxe4 {[%clk 0:02:04.1]} 12... d5 {[%clk
0:02:32.2]} 13. Bxa6 {[%clk 0:01:53.8]} 13... Nxd4 {[%clk 0:02:16.2]} 14. Bxd4
{[%clk 0:01:51.8]} 14... dxe4 {[%clk 0:02:15.1]} 15. Bxg7 {[%clk 0:01:47]} 15...
Kxg7 {[%clk 0:02:15.4]} 16. Bb5 {[%clk 0:01:43.5]} 16... Be6 {[%clk 0:02:04.8]}
17. Qe2 {[%clk 0:01:41.1]} 17... f5 {[%clk 0:01:54.9]} 18. Rfd1 {[%clk 0:01:40]}
18... Qb6 {[%clk 0:01:52.2]} 19. Qe3 {[%clk 0:01:35.6]} 19... Qxe3 {[%clk
0:01:48.2]} 20. fxe3 {[%clk 0:01:35.5]} 20... Rfd8 {[%clk 0:01:47.7]} 21. Kf2
{[%clk 0:01:32.8]} 21... Kf6 {[%clk 0:01:46.8]} 22. Ke2 {[%clk 0:01:28.7]} 22...
Ke5 {[%clk 0:01:45.9]} 23. g3 {[%clk 0:01:24.5]} 23... Rbc8 {[%clk 0:01:43]} 24.
Rxd8 {[%clk 0:01:07.2]} 24... Rxd8 {[%clk 0:01:41.1]} 25. Rd1 {[%clk 0:01:07.8]}
25... Rxd1 {[%clk 0:01:25.6]} 26. Kxd1 {[%clk 0:01:07.3]} 26... g5 {[%clk
0:01:22.1]} 27. Ke2 {[%clk 0:00:19.3]} 27... f4 {[%clk 0:01:21.6]} 28. g4 {[%clk
0:00:14.7]} 28... h5 {[%clk 0:01:10.8]} 29. gxh5 {[%clk 0:00:14.5]} 29... Bxh3
{[%clk 0:01:11.2]} 30. h6 {[%clk 0:00:14.6]} 30... Bf5 {[%clk 0:01:10.3]} 31.
Bd7 {[%clk 0:00:12.6]} 31... e6 {[%clk 0:00:59.6]} 32. a5 {[%clk 0:00:11]} 32...
g4 {[%clk 0:00:56.6]} 33. Bc8 {[%clk 0:00:09.7]} 33... g3 {[%clk 0:00:55]} 34.
exf4+ {[%clk 0:00:07.6]} 34... Kxf4 {[%clk 0:00:55.2]} 35. Bxb7 {[%clk
0:00:06.7]} 35... Bg4+ {[%clk 0:00:28.6]} 36. Kf1 {[%clk 0:00:06.2]} 36... Bh3+
{[%clk 0:00:24.9]} 37. Kg1 {[%clk 0:00:05.5]} 37... e3 {[%clk 0:00:23.3]} 38.
Ba6 {[%clk 0:00:05.5]} 38... Bf5 {[%clk 0:00:21]} 39. Be2 {[%clk 0:00:05.2]}
39... Kg5 {[%clk 0:00:15.1]} 40. Kg2 {[%clk 0:00:03.9]} 40... Kxh6 {[%clk
0:00:14.7]} 41. Kxg3 {[%clk 0:00:04.2]} 41... Bxc2 {[%clk 0:00:13.7]} 42. Kf4
{[%clk 0:00:04.3]} 42... Kg6 {[%clk 0:00:13.6]} 43. Kxe3 {[%clk 0:00:04.2]}
43... Ba4 {[%clk 0:00:10]} 44. a6 {[%clk 0:00:03.4]} 44... Bc6 {[%clk
0:00:09.8]} 45. Bf3 {[%clk 0:00:03.9]} 1-0

[Event "Early-Titled-Tuesday-Blitz-January-16-2024"]
[Site "Chess.com"]
[Date "2024.01.16"]
[Round "2"]
[White "MasterofMasters2006"]
[Black "deribas12345"]
[Result "0-1"]
[WhiteElo "2219"]
[BlackElo "2495"]
[TimeControl "180+1"]
[EndTime "8:18:55 PST"]
[Termination "deribas12345 won on time"]

1. d4 {[%clk 0:03:00.9]} 1... Nf6 {[%clk 0:02:59.7]} 2. c4 {[%clk 0:03:00.1]}
2... c5 {[%clk 0:02:59.9]} 3. d5 {[%clk 0:02:59.6]} 3... b5 {[%clk 0:02:59.9]}
4. Qc2 {[%clk 0:02:58.9]} 4... Na6 {[%clk 0:02:58.7]} 5. a3 {[%clk 0:02:46.1]}
5... d6 {[%clk 0:02:53.9]} 6. cxb5 {[%clk 0:02:44]} 6... Nc7 {[%clk 0:02:53.4]}
7. e4 {[%clk 0:02:43.8]} 7... e6 {[%clk 0:02:51.8]} 8. dxe6 {[%clk 0:02:37.8]}
8... Nxe6 {[%clk 0:02:51.6]} 9. Nf3 {[%clk 0:02:35.4]} 9... Bb7 {[%clk
0:02:51.5]} 10. Nc3 {[%clk 0:02:34.7]} 10... Nd4 {[%clk 0:02:50.8]} 11. Qd3
{[%clk 0:02:15.8]} 11... Nb3 {[%clk 0:02:42.9]} 12. Rb1 {[%clk 0:01:53.5]} 12...
Nxc1 {[%clk 0:02:41.8]} 13. Rxc1 {[%clk 0:01:54.4]} 13... Be7 {[%clk 0:02:41.8]}
14. Be2 {[%clk 0:01:50.5]} 14... O-O {[%clk 0:02:41.4]} 15. O-O {[%clk
0:01:51.1]} 15... Qa5 {[%clk 0:02:37.6]} 16. Nd2 {[%clk 0:01:49.4]} 16... Rfd8
{[%clk 0:02:30.5]} 17. Nc4 {[%clk 0:01:36.5]} 17... Qc7 {[%clk 0:02:30.3]} 18.
Ne3 {[%clk 0:01:36.2]} 18... Rab8 {[%clk 0:02:11.4]} 19. Rfd1 {[%clk 0:01:24.6]}
19... Re8 {[%clk 0:02:10.3]} 20. Bf3 {[%clk 0:01:17.8]} 20... Nd7 {[%clk
0:01:51.3]} 21. Nf5 {[%clk 0:01:09.9]} 21... Ne5 {[%clk 0:01:40.5]} 22. Qe2
{[%clk 0:01:07.5]} 22... Bf8 {[%clk 0:01:24.3]} 23. Rd2 {[%clk 0:00:46.2]} 23...
g6 {[%clk 0:01:14.1]} 24. Ne3 {[%clk 0:00:39.6]} 24... Bh6 {[%clk 0:01:10]} 25.
Rcd1 {[%clk 0:00:38.3]} 25... Bxe3 {[%clk 0:01:07.7]} 26. Qxe3 {[%clk
0:00:37.3]} 26... Nc4 {[%clk 0:01:06.7]} 27. Qe2 {[%clk 0:00:34.3]} 27... Nxd2
{[%clk 0:01:06.7]} 28. Qxd2 {[%clk 0:00:35.2]} 28... Rbd8 {[%clk 0:01:03.9]} 29.
a4 {[%clk 0:00:31.7]} 29... Qa5 {[%clk 0:00:59.6]} 30. Nd5 {[%clk 0:00:17.3]}
30... Qxd2 {[%clk 0:00:59.2]} 31. Nf6+ {[%clk 0:00:17.3]} 31... Kf8 {[%clk
0:00:59.8]} 32. Rxd2 {[%clk 0:00:16.7]} 32... Re5 {[%clk 0:00:52.9]} 33. h4
{[%clk 0:00:15.2]} 33... Kg7 {[%clk 0:00:43.7]} 34. Ng4 {[%clk 0:00:15.2]} 34...
Ree8 {[%clk 0:00:40.9]} 35. Ne3 {[%clk 0:00:15.7]} 35... Bxe4 {[%clk 0:00:40.2]}
36. Bxe4 {[%clk 0:00:15]} 36... Rxe4 {[%clk 0:00:41.1]} 37. b3 {[%clk
0:00:14.4]} 37... Rxh4 {[%clk 0:00:40.4]} 38. Rd3 {[%clk 0:00:14.4]} 38... Rd4
{[%clk 0:00:36.2]} 39. Rc3 {[%clk 0:00:09.4]} 39... h5 {[%clk 0:00:30.2]} 40.
Kf1 {[%clk 0:00:08]} 40... h4 {[%clk 0:00:29.3]} 41. Ke2 {[%clk 0:00:08.6]}
41... Re8 {[%clk 0:00:29.7]} 42. Kf3 {[%clk 0:00:07.8]} 42... f6 {[%clk
0:00:30.2]} 43. Nc4 {[%clk 0:00:07.2]} 43... g5 {[%clk 0:00:29.3]} 44. Ne3
{[%clk 0:00:07.5]} 44... Kg6 {[%clk 0:00:29.6]} 45. Rc1 {[%clk 0:00:06.7]} 45...
Rf4+ {[%clk 0:00:29.1]} 46. Ke2 {[%clk 0:00:06.1]} 46... g4 {[%clk 0:00:28.6]}
47. Rd1 {[%clk 0:00:05.6]} 47... g3 {[%clk 0:00:27.4]} 48. f3 {[%clk 0:00:02.4]}
48... Rd4 {[%clk 0:00:25.9]} 49. Rh1 {[%clk 0:00:02]} 49... Rb4 {[%clk
0:00:24.7]} 50. Rxh4 {[%clk 0:00:01.7]} 50... Rxh4 {[%clk 0:00:24.2]} 0-1

[Event "Early-Titled-Tuesday-Blitz-January-16-2024"]
[Site "Chess.com"]
[Date "2024.01.16"]
[Round "2"]
[White "TrahtarBelarus"]
[Black "karinachess1"]
[Result "1-0"]
[WhiteElo "2894"]
[BlackElo "2595"]
[TimeControl "180+1"]
[EndTime "8:18:59 PST"]
[Termination "TrahtarBelarus won by resignation"]

1. a3 {[%clk 0:03:00.9]} 1... e5 {[%clk 0:02:58.2]} 2. e4 {[%clk 0:03:01.1]}
2... Nf6 {[%clk 0:02:57.6]} 3. Nc3 {[%clk 0:03:01.6]} 3... d5 {[%clk 0:02:54.7]}
4. exd5 {[%clk 0:02:58.3]} 4... Nxd5 {[%clk 0:02:55.6]} 5. Nf3 {[%clk
0:02:50.8]} 5... Nxc3 {[%clk 0:02:55.7]} 6. bxc3 {[%clk 0:02:50.8]} 6... Nc6
{[%clk 0:02:55.9]} 7. Bb5 {[%clk 0:02:49.4]} 7... Bd6 {[%clk 0:02:56.2]} 8. d4
{[%clk 0:02:49.8]} 8... exd4 {[%clk 0:02:52.2]} 9. O-O {[%clk 0:02:48.7]} 9...
O-O {[%clk 0:02:51.3]} 10. cxd4 {[%clk 0:02:48.7]} 10... Bg4 {[%clk 0:02:49.6]}
11. c3 {[%clk 0:02:44.2]} 11... Qf6 {[%clk 0:02:48.7]} 12. h3 {[%clk 0:02:29]}
12... Bxf3 {[%clk 0:02:48.6]} 13. Qxf3 {[%clk 0:02:29.9]} 13... Qxf3 {[%clk
0:02:48.9]} 14. gxf3 {[%clk 0:02:30.8]} 14... Ne7 {[%clk 0:02:49.5]} 15. Rb1
{[%clk 0:02:26.9]} 15... Ng6 {[%clk 0:02:45.4]} 16. Re1 {[%clk 0:02:23.5]} 16...
Nh4 {[%clk 0:02:32.7]} 17. Re4 {[%clk 0:01:42.9]} 17... Ng6 {[%clk 0:01:53.6]}
18. a4 {[%clk 0:01:37.6]} 18... b6 {[%clk 0:01:46.3]} 19. Bc6 {[%clk 0:01:30.9]}
19... Rad8 {[%clk 0:01:45.8]} 20. Bg5 {[%clk 0:01:18.1]} 20... f6 {[%clk
0:01:43.5]} 21. Bd2 {[%clk 0:01:18.4]} 21... Ne7 {[%clk 0:01:42.4]} 22. Bb5
{[%clk 0:01:18.7]} 22... c6 {[%clk 0:01:34.5]} 23. Bc4+ {[%clk 0:01:17.5]} 23...
Nd5 {[%clk 0:01:34.9]} 24. Ba2 {[%clk 0:01:08.6]} 24... Kh8 {[%clk 0:01:30]} 25.
c4 {[%clk 0:01:04.1]} 25... Ne7 {[%clk 0:01:18.9]} 26. a5 {[%clk 0:00:59.2]}
26... Rb8 {[%clk 0:01:19.1]} 27. Re6 {[%clk 0:00:44.4]} 27... Nf5 {[%clk
0:01:14]} 28. Bc3 {[%clk 0:00:35.6]} 28... Rfd8 {[%clk 0:00:58.2]} 29. c5 {[%clk
0:00:13.9]} 29... bxc5 {[%clk 0:00:54.7]} 30. dxc5 {[%clk 0:00:14.3]} 30... Bxc5
{[%clk 0:00:50.8]} 31. Rxb8 {[%clk 0:00:14.4]} 31... Rxb8 {[%clk 0:00:51.7]} 32.
Rxc6 {[%clk 0:00:14.9]} 32... Bd4 {[%clk 0:00:31.4]} 33. Bd2 {[%clk 0:00:08.3]}
33... h5 {[%clk 0:00:22.9]} 34. Be6 {[%clk 0:00:08]} 34... Nh4 {[%clk
0:00:19.4]} 35. Bf4 {[%clk 0:00:04.8]} 35... Rb1+ {[%clk 0:00:16.3]} 36. Kh2
{[%clk 0:00:05.2]} 36... Bxf2 {[%clk 0:00:14.6]} 37. Bd5 {[%clk 0:00:04.7]}
37... Bg1+ {[%clk 0:00:12.9]} 38. Kg3 {[%clk 0:00:05.3]} 38... Nf5+ {[%clk
0:00:12.3]} 39. Kg2 {[%clk 0:00:05.9]} 39... Bd4 {[%clk 0:00:10.4]} 40. Rc8+
{[%clk 0:00:05.8]} 40... Kh7 {[%clk 0:00:10.5]} 41. Be4 {[%clk 0:00:06.7]} 41...
Rb2+ {[%clk 0:00:07.1]} 42. Kf1 {[%clk 0:00:06.3]} 42... Rb1+ {[%clk 0:00:06.1]}
43. Ke2 {[%clk 0:00:06.4]} 43... g6 {[%clk 0:00:06.4]} 44. Bxb1 {[%clk 0:00:06]}
44... Kg7 {[%clk 0:00:04.1]} 45. Bxf5 {[%clk 0:00:06.2]} 45... gxf5 {[%clk
0:00:04.2]} 46. Rc7+ {[%clk 0:00:06.5]} 46... Kg6 {[%clk 0:00:04.2]} 47. a6
{[%clk 0:00:06.9]} 47... Bb6 {[%clk 0:00:04.2]} 48. Rb7 {[%clk 0:00:07.4]} 48...
Be3 {[%clk 0:00:04.7]} 49. Bxe3 {[%clk 0:00:08.2]} 1-0

[Event "Early-Titled-Tuesday-Blitz-January-16-2024"]
[Site "Chess.com"]
[Date "2024.01.16"]
[Round "2"]
[White "eagleclaw07"]
[Black "SarochaChuemsakul"]
[Result "0-1"]
[WhiteElo "2643"]
[BlackElo "2408"]
[TimeControl "180+1"]
[EndTime "8:19:00 PST"]
[Termination "SarochaChuemsakul won on time"]

1. d4 {[%clk 0:03:00.9]} 1... g6 {[%clk 0:03:00.2]} 2. c4 {[%clk 0:03:01.7]}
2... Bg7 {[%clk 0:03:00.7]} 3. Nf3 {[%clk 0:03:02.5]} 3... Nf6 {[%clk
0:03:01.3]} 4. g3 {[%clk 0:03:03]} 4... d6 {[%clk 0:03:01.9]} 5. Bg2 {[%clk
0:03:03.8]} 5... O-O {[%clk 0:03:02.5]} 6. O-O {[%clk 0:03:04.5]} 6... c5 {[%clk
0:03:03.1]} 7. d5 {[%clk 0:03:04.4]} 7... e6 {[%clk 0:03:02.9]} 8. Nc3 {[%clk
0:03:04.5]} 8... exd5 {[%clk 0:03:03.4]} 9. cxd5 {[%clk 0:03:05.4]} 9... Re8
{[%clk 0:03:00]} 10. Bf4 {[%clk 0:03:05.3]} 10... Nh5 {[%clk 0:02:59]} 11. Bg5
{[%clk 0:03:04.9]} 11... Qb6 {[%clk 0:02:47.8]} 12. Qd2 {[%clk 0:03:05.3]} 12...
a6 {[%clk 0:02:42.2]} 13. e4 {[%clk 0:03:02.7]} 13... Qc7 {[%clk 0:02:33.5]} 14.
e5 {[%clk 0:03:01.3]} 14... dxe5 {[%clk 0:02:20.2]} 15. d6 {[%clk 0:03:01.1]}
15... Qa5 {[%clk 0:02:17.4]} 16. Nd5 {[%clk 0:02:57.8]} 16... Qxd2 {[%clk
0:02:17]} 17. Bxd2 {[%clk 0:02:58.7]} 17... Nc6 {[%clk 0:02:08.4]} 18. Nc7
{[%clk 0:02:58.1]} 18... Bd7 {[%clk 0:02:07.9]} 19. Nxa8 {[%clk 0:02:58]} 19...
Rxa8 {[%clk 0:02:07.6]} 20. Bc3 {[%clk 0:02:56.9]} 20... e4 {[%clk 0:01:37.6]}
21. Nd2 {[%clk 0:02:56.3]} 21... f5 {[%clk 0:01:37.2]} 22. Nc4 {[%clk
0:02:56.1]} 22... Rd8 {[%clk 0:01:27.4]} 23. Bxg7 {[%clk 0:02:50.7]} 23... Kxg7
{[%clk 0:01:13.9]} 24. Rad1 {[%clk 0:02:47.8]} 24... Be6 {[%clk 0:01:09.3]} 25.
Nb6 {[%clk 0:02:47]} 25... Nd4 {[%clk 0:01:04.4]} 26. b4 {[%clk 0:02:47.5]}
26... Ne2+ {[%clk 0:00:55.8]} 27. Kh1 {[%clk 0:02:45.4]} 27... cxb4 {[%clk
0:00:56.7]} 28. d7 {[%clk 0:02:41.3]} 28... Nf6 {[%clk 0:00:53.4]} 29. Rd6
{[%clk 0:02:40.9]} 29... Kf7 {[%clk 0:00:53.6]} 30. Rfd1 {[%clk 0:02:37.3]}
30... Ke7 {[%clk 0:00:50.8]} 31. Nc8+ {[%clk 0:02:36.4]} 31... Kf7 {[%clk
0:00:51.1]} 32. Nb6 {[%clk 0:01:41.5]} 32... Ng4 {[%clk 0:00:46.5]} 33. Rf1
{[%clk 0:01:37.7]} 33... Ke7 {[%clk 0:00:41.9]} 34. Nc8+ {[%clk 0:01:38]} 34...
Kf7 {[%clk 0:00:42.3]} 35. Rd2 {[%clk 0:01:34.5]} 35... Nc3 {[%clk 0:00:41.9]}
36. Nb6 {[%clk 0:01:31.4]} 36... Ne5 {[%clk 0:00:39.8]} 37. Rb2 {[%clk
0:00:30.8]} 37... a5 {[%clk 0:00:35.9]} 38. a3 {[%clk 0:00:18.8]} 38... b3
{[%clk 0:00:22.4]} 39. Rc1 {[%clk 0:00:17.9]} 39... Nd3 {[%clk 0:00:15.6]} 40.
Rxc3 {[%clk 0:00:18.5]} 40... Nxb2 {[%clk 0:00:15.7]} 41. Bf1 {[%clk 0:00:06.8]}
41... Nd3 {[%clk 0:00:12.5]} 42. Bxd3 {[%clk 0:00:06.7]} 42... exd3 {[%clk
0:00:13.4]} 43. Rxd3 {[%clk 0:00:07.4]} 43... b2 {[%clk 0:00:14]} 44. Rd1 {[%clk
0:00:07.5]} 44... Ba2 {[%clk 0:00:14.3]} 45. Kg2 {[%clk 0:00:05.7]} 45... b1=Q
{[%clk 0:00:14.8]} 46. Rxb1 {[%clk 0:00:06.3]} 46... Bxb1 {[%clk 0:00:15.7]} 0-1

[Event "Early-Titled-Tuesday-Blitz-January-16-2024"]
[Site "Chess.com"]
[Date "2024.01.16"]
[Round "2"]
[White "sansanathalia"]
[Black "Vazabanga"]
[Result "0-1"]
[WhiteElo "2395"]
[BlackElo "2689"]
[TimeControl "180+1"]
[EndTime "8:19:03 PST"]
[Termination "Vazabanga won by resignation"]

1. e4 {[%clk 0:03:00.9]} 1... c5 {[%clk 0:03:00]} 2. Nf3 {[%clk 0:02:58.7]} 2...
d6 {[%clk 0:03:00.4]} 3. d4 {[%clk 0:02:54.4]} 3... cxd4 {[%clk 0:03:01.3]} 4.
Qxd4 {[%clk 0:02:52.6]} 4... a6 {[%clk 0:02:59.1]} 5. c4 {[%clk 0:02:48.7]} 5...
Nc6 {[%clk 0:02:59]} 6. Qd1 {[%clk 0:02:47.7]} 6... g6 {[%clk 0:02:59.3]} 7. Be2
{[%clk 0:02:43.1]} 7... Bg7 {[%clk 0:02:59.7]} 8. O-O {[%clk 0:02:41.3]} 8...
Bg4 {[%clk 0:02:59.6]} 9. h3 {[%clk 0:02:27.3]} 9... Bxf3 {[%clk 0:02:59.6]} 10.
Bxf3 {[%clk 0:02:26.1]} 10... Nf6 {[%clk 0:02:56.6]} 11. Nc3 {[%clk 0:02:23.8]}
11... O-O {[%clk 0:02:56.4]} 12. a3 {[%clk 0:02:13.1]} 12... Nd7 {[%clk
0:02:52.7]} 13. Nd5 {[%clk 0:02:01.9]} 13... Rc8 {[%clk 0:02:49.3]} 14. Rb1
{[%clk 0:01:51.5]} 14... Nd4 {[%clk 0:02:36.4]} 15. b3 {[%clk 0:01:44.9]} 15...
Ne5 {[%clk 0:02:20.1]} 16. Be2 {[%clk 0:01:37.1]} 16... Re8 {[%clk 0:02:18.7]}
17. Bb2 {[%clk 0:01:32]} 17... Nec6 {[%clk 0:02:18.3]} 18. b4 {[%clk 0:01:26.2]}
18... e6 {[%clk 0:01:58.1]} 19. Ne3 {[%clk 0:01:22.5]} 19... b5 {[%clk
0:01:51.3]} 20. cxb5 {[%clk 0:01:14.8]} 20... axb5 {[%clk 0:01:52.2]} 21. Qd2
{[%clk 0:01:10.2]} 21... Qh4 {[%clk 0:01:48.6]} 22. Bd3 {[%clk 0:00:53.9]} 22...
Red8 {[%clk 0:01:34.9]} 23. Rfd1 {[%clk 0:00:49.4]} 23... Qg5 {[%clk 0:01:22.8]}
24. Kh1 {[%clk 0:00:45.7]} 24... Qf4 {[%clk 0:01:11.3]} 25. Qe1 {[%clk 0:00:35]}
25... Be5 {[%clk 0:01:00.8]} 26. Nf1 {[%clk 0:00:31.8]} 26... h5 {[%clk
0:00:58.8]} 27. Qe3 {[%clk 0:00:24.8]} 27... Qf6 {[%clk 0:00:56.6]} 28. g3
{[%clk 0:00:20.8]} 28... Qg7 {[%clk 0:00:51.8]} 29. f4 {[%clk 0:00:20.5]} 29...
Bf6 {[%clk 0:00:51.9]} 30. Nh2 {[%clk 0:00:20.4]} 30... e5 {[%clk 0:00:46]} 31.
fxe5 {[%clk 0:00:18.9]} 31... Bxe5 {[%clk 0:00:42.1]} 32. Kg2 {[%clk 0:00:17.9]}
32... Ne6 {[%clk 0:00:38.8]} 33. Bxe5 {[%clk 0:00:17.1]} 33... dxe5 {[%clk
0:00:35.9]} 34. Bxb5 {[%clk 0:00:16.7]} 34... Ncd4 {[%clk 0:00:36.2]} 35. Bd3
{[%clk 0:00:16]} 35... Rc3 {[%clk 0:00:36.3]} 36. Rbc1 {[%clk 0:00:15]} 36...
Rxa3 {[%clk 0:00:36.1]} 37. Qf2 {[%clk 0:00:12.8]} 37... Rb8 {[%clk 0:00:35.5]}
38. Qb2 {[%clk 0:00:11.2]} 38... Rb3 {[%clk 0:00:35.4]} 39. Qd2 {[%clk
0:00:10.4]} 39... R3xb4 {[%clk 0:00:32.6]} 40. Rb1 {[%clk 0:00:10.6]} 40... Rxb1
{[%clk 0:00:31.9]} 41. Rxb1 {[%clk 0:00:11.5]} 41... Rxb1 {[%clk 0:00:31.9]} 42.
Bxb1 {[%clk 0:00:12.1]} 42... Qf8 {[%clk 0:00:31.8]} 43. Nf3 {[%clk 0:00:09.6]}
43... Nxf3 {[%clk 0:00:30.5]} 44. Kxf3 {[%clk 0:00:10.5]} 44... Qa3+ {[%clk
0:00:25.8]} 45. Kg2 {[%clk 0:00:10.5]} 45... Nd4 {[%clk 0:00:25.2]} 46. Bd3
{[%clk 0:00:10.8]} 46... Qb3 {[%clk 0:00:22.7]} 47. h4 {[%clk 0:00:06]} 47...
Kg7 {[%clk 0:00:22.5]} 48. Qe3 {[%clk 0:00:04.5]} 48... Qb2+ {[%clk 0:00:21.5]}
49. Qf2 {[%clk 0:00:05]} 49... Qc3 {[%clk 0:00:19.9]} 50. Qe3 {[%clk 0:00:05.3]}
50... Nc2 {[%clk 0:00:17.4]} 51. Qe2 {[%clk 0:00:01.7]} 51... Qxd3 {[%clk
0:00:15.7]} 52. Qxd3 {[%clk 0:00:01.4]} 52... Ne1+ {[%clk 0:00:16]} 0-1